[Event "Titled Tuesday Blitz July 4 Early 2023"]
[White "Kovalenko, Igor"]
[Black "Gontcharov, Vladislav"]
[WhiteFideId "14117908"]
[BlackFideId "4123492"]
[WhiteElo "2875"]
[BlackElo "2577"]
[Result "1-0"]
[Round "3"]
[TimeControl "180+2"]
[Date "2023.07.04"]
[WhiteClock "0:00:50"]
[BlackClock "0:00:00"]
[Board "31"]

1. c4 {[%clk 0:03:00]}  Nf6 {[%clk 0:02:59]} 2. Nc3 {[%clk 0:03:00]}  c5 {[%clk 0:02:57]} 3. Nf3 {[%clk 0:03:00]}  Nc6 {[%clk 0:02:45]} 4. e3 {[%clk 0:02:59]}  g6 {[%clk 0:02:43]} 5. d4 {[%clk 0:02:59]}  cxd4 {[%clk 0:02:43]} 6. exd4 {[%clk 0:03:00]}  d5 {[%clk 0:02:40]} 7. h3 {[%clk 0:03:00]}  Bg7 {[%clk 0:02:28]} 8. c5 {[%clk 0:03:01]}  O-O {[%clk 0:02:25]} 9. Bb5 {[%clk 0:03:01]}  Ne4 {[%clk 0:02:23]} 10. O-O {[%clk 0:02:58]}  Nxc3 {[%clk 0:02:19]} 11. bxc3 {[%clk 0:02:59]}  Bd7 {[%clk 0:02:19]} 12. Re1 {[%clk 0:02:58]}  e6 {[%clk 0:01:51]} 13. a4 {[%clk 0:02:57]}  a6 {[%clk 0:01:50]} 14. Bd3 {[%clk 0:02:56]}  b6 {[%clk 0:01:49]} 15. Ba3 {[%clk 0:02:55]}  bxc5 {[%clk 0:01:49]} 16. Bxc5 {[%clk 0:02:56]}  Re8 {[%clk 0:01:49]} 17. Rb1 {[%clk 0:02:51]}  Qc8 {[%clk 0:01:45]} 18. Bd6 {[%clk 0:02:49]}  Na5 {[%clk 0:01:31]} 19. Ne5 {[%clk 0:02:42]}  f6 {[%clk 0:01:16]} 20. Ng4 {[%clk 0:02:29]}  Qc6 {[%clk 0:01:12]} 21. Bb4 {[%clk 0:02:27]}  Nc4 {[%clk 0:01:11]} 22. a5 {[%clk 0:02:27]}  f5 {[%clk 0:01:08]} 23. Nh2 {[%clk 0:02:21]}  e5 {[%clk 0:01:03]} 24. dxe5 {[%clk 0:02:17]}  Nxe5 {[%clk 0:01:02]} 25. Bf1 {[%clk 0:02:16]}  Be6 {[%clk 0:00:53]} 26. Nf3 {[%clk 0:02:11]}  Nxf3+ {[%clk 0:00:53]} 27. Qxf3 {[%clk 0:02:12]}  Bf7 {[%clk 0:00:53]} 28. Rxe8+ {[%clk 0:02:11]}  Rxe8 {[%clk 0:00:53]} 29. Rd1 {[%clk 0:02:11]}  h5 {[%clk 0:00:45]} 30. Qd3 {[%clk 0:02:10]}  Ra8 {[%clk 0:00:44]} 31. h4 {[%clk 0:02:09]}  Bf6 {[%clk 0:00:44]} 32. g3 {[%clk 0:02:08]}  Kg7 {[%clk 0:00:44]} 33. Bg2 {[%clk 0:02:08]}  Rd8 {[%clk 0:00:44]} 34. Bf1 {[%clk 0:02:04]}  Ra8 {[%clk 0:00:44]} 35. Qe3 {[%clk 0:02:01]}  Qc7 {[%clk 0:00:36]} 36. Qb6 {[%clk 0:01:52]}  Qxb6 {[%clk 0:00:30]} 37. axb6 {[%clk 0:01:53]}  a5 {[%clk 0:00:31]} 38. Ra1 {[%clk 0:01:48]}  Bd8 {[%clk 0:00:25]} 39. Rxa5 {[%clk 0:01:48]}  Rb8 {[%clk 0:00:25]} 40. Ra7 {[%clk 0:01:37]}  Bxb6 {[%clk 0:00:25]} 41. Rd7 {[%clk 0:01:36]}  Kg8 {[%clk 0:00:23]} 42. Bd3 {[%clk 0:01:14]}  Be6 {[%clk 0:00:20]} 43. Re7 {[%clk 0:01:13]}  Bf7 {[%clk 0:00:18]} 44. Bd6 {[%clk 0:01:12]}  Rd8 {[%clk 0:00:17]} 45. Bf4 {[%clk 0:01:10]}  d4 {[%clk 0:00:18]} 46. c4 {[%clk 0:01:10]}  Rc8 {[%clk 0:00:17]} 47. Rb7 {[%clk 0:01:10]}  Bc5 {[%clk 0:00:16]} 48. Be5 {[%clk 0:01:04]}  Bf8 {[%clk 0:00:16]} 49. Bc7 {[%clk 0:01:04]}  Ra8 {[%clk 0:00:10]} 50. Kf1 {[%clk 0:00:55]}  Ra3 {[%clk 0:00:10]} 51. Ke2 {[%clk 0:00:56]}  Ra2+ {[%clk 0:00:10]} 52. Kd1 {[%clk 0:00:56]}  Ra3 {[%clk 0:00:10]} 53. Kc2 {[%clk 0:00:56]}  Rc3+ {[%clk 0:00:10]} 54. Kd2 {[%clk 0:00:56]}  Bxc4 {[%clk 0:00:10]} 55. Bxc4+ {[%clk 0:00:56]}  Rxc4 {[%clk 0:00:11]} 56. Kd3 {[%clk 0:00:56]}  Ra4 {[%clk 0:00:10]} 57. Be5 {[%clk 0:00:54]}  Ra6 {[%clk 0:00:04]} 58. Bxd4 {[%clk 0:00:54]}  Re6 {[%clk 0:00:00]} 59. Kc4 {[%clk 0:00:50]} 1-0


[Site "https://www.chess.com"]

[Event "Titled Tuesday Blitz July 4 Early 2023"]
[White "Pap, Gyula"]
[Black "The_Sherman_Variation"]
[WhiteFideId "725323"]
[WhiteElo "2857"]
[BlackElo "2566"]
[Result "1-0"]
[Round "3"]
[TimeControl "180+2"]
[Date "2023.07.04"]
[WhiteClock "0:00:45"]
[BlackClock "0:00:27"]
[Board "33"]

1. d4 {[%clk 0:03:00]}  Nf6 {[%clk 0:02:58]} 2. c4 {[%clk 0:03:01]}  c5 {[%clk 0:02:58]} 3. d5 {[%clk 0:03:01]}  b5 {[%clk 0:02:58]} 4. Qc2 {[%clk 0:03:01]}  e6 {[%clk 0:02:57]} 5. e4 {[%clk 0:03:00]}  bxc4 {[%clk 0:02:57]} 6. Nc3 {[%clk 0:02:59]}  Bb7 {[%clk 0:02:56]} 7. Bxc4 {[%clk 0:02:57]}  Na6 {[%clk 0:02:53]} 8. a3 {[%clk 0:02:44]}  Bd6 {[%clk 0:02:49]} 9. Nf3 {[%clk 0:02:23]}  exd5 {[%clk 0:02:46]} 10. Bxa6 {[%clk 0:02:22]}  Bxa6 {[%clk 0:02:46]} 11. e5 {[%clk 0:02:22]}  O-O {[%clk 0:02:32]} 12. exd6 {[%clk 0:02:18]}  Re8+ {[%clk 0:02:31]} 13. Be3 {[%clk 0:02:00]}  d4 {[%clk 0:02:29]} 14. O-O-O {[%clk 0:02:01]}  dxe3 {[%clk 0:02:22]} 15. fxe3 {[%clk 0:02:01]}  Rb8 {[%clk 0:02:16]} 16. e4 {[%clk 0:01:53]}  Bc4 {[%clk 0:01:56]} 17. e5 {[%clk 0:01:52]}  Bb3 {[%clk 0:01:49]} 18. Qf5 {[%clk 0:01:53]}  Bxd1 {[%clk 0:01:44]} 19. Rxd1 {[%clk 0:01:53]}  Re6 {[%clk 0:01:41]} 20. exf6 {[%clk 0:01:33]}  Rxf6 {[%clk 0:01:42]} 21. Qxc5 {[%clk 0:01:30]}  Rg6 {[%clk 0:01:37]} 22. Rd2 {[%clk 0:01:26]}  a5 {[%clk 0:01:32]} 23. Qc7 {[%clk 0:01:17]}  Qe8 {[%clk 0:01:21]} 24. Re2 {[%clk 0:01:15]}  Re6 {[%clk 0:01:21]} 25. Rxe6 {[%clk 0:01:15]}  fxe6 {[%clk 0:01:22]} 26. Ne5 {[%clk 0:01:12]}  Qf8 {[%clk 0:01:14]} 27. Kb1 {[%clk 0:00:59]}  Rb3 {[%clk 0:00:49]} 28. Ka2 {[%clk 0:00:52]}  a4 {[%clk 0:00:41]} 29. Qxd7 {[%clk 0:00:48]}  Qb8 {[%clk 0:00:34]} 30. Qxe6+ {[%clk 0:00:45]}  Kh8 {[%clk 0:00:33]} 31. Nf7+ {[%clk 0:00:44]}  Kg8 {[%clk 0:00:27]} 32. Nd8+ {[%clk 0:00:45]} 1-0


[Site "https://www.chess.com"]

[Event "Titled Tuesday Blitz July 4 Early 2023"]
[White "Kosakowski, Jakub"]
[Black "Zavgorodniy, Sergiy"]
[WhiteFideId "1185080"]
[BlackFideId "14110148"]
[WhiteElo "2842"]
[BlackElo "2554"]
[Result "1-0"]
[Round "3"]
[TimeControl "180+2"]
[Date "2023.07.04"]
[WhiteClock "0:00:20"]
[BlackClock "0:00:02"]
[Board "36"]

1. d4 {[%clk 0:02:55]}  Nf6 {[%clk 0:02:59]} 2. c4 {[%clk 0:02:55]}  e6 {[%clk 0:02:56]} 3. Nc3 {[%clk 0:02:55]}  Bb4 {[%clk 0:02:56]} 4. a3 {[%clk 0:02:43]}  Bxc3+ {[%clk 0:02:55]} 5. bxc3 {[%clk 0:02:44]}  c5 {[%clk 0:02:45]} 6. e3 {[%clk 0:02:43]}  d6 {[%clk 0:02:40]} 7. Bd3 {[%clk 0:02:42]}  e5 {[%clk 0:02:39]} 8. Ne2 {[%clk 0:02:40]}  e4 {[%clk 0:02:29]} 9. Bc2 {[%clk 0:02:39]}  Qe7 {[%clk 0:02:29]} 10. a4 {[%clk 0:02:35]}  O-O {[%clk 0:02:26]} 11. O-O {[%clk 0:02:33]}  Bg4 {[%clk 0:02:22]} 12. h3 {[%clk 0:02:28]}  Bh5 {[%clk 0:02:22]} 13. Qd2 {[%clk 0:02:24]}  Bxe2 {[%clk 0:02:10]} 14. Qxe2 {[%clk 0:02:24]}  Nc6 {[%clk 0:02:09]} 15. a5 {[%clk 0:02:16]}  Qc7 {[%clk 0:02:07]} 16. a6 {[%clk 0:02:14]}  b6 {[%clk 0:02:06]} 17. Ba4 {[%clk 0:02:09]}  Na5 {[%clk 0:02:00]} 18. Bb5 {[%clk 0:02:08]}  Rac8 {[%clk 0:01:58]} 19. Ba3 {[%clk 0:02:04]}  Qe7 {[%clk 0:01:48]} 20. Rfd1 {[%clk 0:02:00]}  Ne8 {[%clk 0:01:35]} 21. dxc5 {[%clk 0:01:55]}  bxc5 {[%clk 0:01:27]} 22. Bxc5 {[%clk 0:01:52]}  Rxc5 {[%clk 0:01:23]} 23. Rxa5 {[%clk 0:01:52]}  Nc7 {[%clk 0:01:10]} 24. Ra2 {[%clk 0:01:50]}  Rc8 {[%clk 0:01:06]} 25. Rad2 {[%clk 0:01:47]}  d5 {[%clk 0:01:02]} 26. Qg4 {[%clk 0:01:37]}  Rb8 {[%clk 0:00:52]} 27. Rd4 {[%clk 0:01:19]}  g6 {[%clk 0:00:49]} 28. Ba4 {[%clk 0:01:15]}  Rxc4 {[%clk 0:00:37]} 29. Rxc4 {[%clk 0:01:13]}  dxc4 {[%clk 0:00:38]} 30. Qf4 {[%clk 0:01:09]}  Nxa6 {[%clk 0:00:31]} 31. Rd7 {[%clk 0:01:09]}  Qe6 {[%clk 0:00:28]} 32. Rxa7 {[%clk 0:01:09]}  Rb1+ {[%clk 0:00:24]} 33. Kh2 {[%clk 0:01:09]}  Nc5 {[%clk 0:00:24]} 34. Bc6 {[%clk 0:00:58]}  Kg7 {[%clk 0:00:21]} 35. Ba8 {[%clk 0:00:47]}  Rb2 {[%clk 0:00:19]} 36. Rc7 {[%clk 0:00:42]}  Nd3 {[%clk 0:00:19]} 37. Qg3 {[%clk 0:00:31]}  Rxf2 {[%clk 0:00:18]} 38. Rc6 {[%clk 0:00:27]}  Qe8 {[%clk 0:00:14]} 39. Bb7 {[%clk 0:00:25]}  Rb2 {[%clk 0:00:12]} 40. Rc7 {[%clk 0:00:24]}  Ne5 {[%clk 0:00:12]} 41. Bxe4 {[%clk 0:00:23]}  Re2 {[%clk 0:00:08]} 42. Bd5 {[%clk 0:00:21]}  Rxe3 {[%clk 0:00:05]} 43. Qf4 {[%clk 0:00:21]}  Re2 {[%clk 0:00:04]} 44. Qd4 {[%clk 0:00:20]}  h5 {[%clk 0:00:04]} 45. Rxf7+ {[%clk 0:00:19]}  Kh6 {[%clk 0:00:04]} 46. Qf4+ {[%clk 0:00:19]}  g5 {[%clk 0:00:02]} 47. Qf6+ {[%clk 0:00:19]}  Ng6 {[%clk 0:00:02]} 48. Qg7# {[%clk 0:00:20]} 1-0


[Site "https://www.chess.com"]

[Event "Titled Tuesday Blitz July 4 Early 2023"]
[White "Bruedigam, Martin"]
[Black "Beerdsen, Thomas"]
[WhiteFideId "24608033"]
[BlackFideId "1030108"]
[WhiteElo "2553"]
[BlackElo "2833"]
[Result "0-1"]
[Round "3"]
[TimeControl "180+2"]
[Date "2023.07.04"]
[WhiteClock "0:01:23"]
[BlackClock "0:01:38"]
[Board "37"]

1. e4 {[%clk 0:03:00]}  e5 {[%clk 0:02:59]} 2. Nf3 {[%clk 0:03:00]}  Nc6 {[%clk 0:02:59]} 3. Bc4 {[%clk 0:03:00]}  Nf6 {[%clk 0:02:59]} 4. d3 {[%clk 0:02:59]}  h6 {[%clk 0:02:59]} 5. Nc3 {[%clk 0:02:55]}  d6 {[%clk 0:02:57]} 6. a3 {[%clk 0:02:55]}  g5 {[%clk 0:02:57]} 7. Be3 {[%clk 0:02:49]}  Be6 {[%clk 0:02:55]} 8. Nd2 {[%clk 0:02:46]}  Bg7 {[%clk 0:02:53]} 9. Nf1 {[%clk 0:02:41]}  d5 {[%clk 0:02:49]} 10. Ba2 {[%clk 0:02:38]}  d4 {[%clk 0:02:48]} 11. Ne2 {[%clk 0:02:25]}  dxe3 {[%clk 0:02:41]} 12. Nxe3 {[%clk 0:02:26]}  Bxa2 {[%clk 0:02:31]} 13. Rxa2 {[%clk 0:02:26]}  Qd7 {[%clk 0:02:27]} 14. Qd2 {[%clk 0:02:26]}  O-O-O {[%clk 0:02:26]} 15. Ng3 {[%clk 0:02:26]}  h5 {[%clk 0:02:24]} 16. Ra1 {[%clk 0:02:21]}  Bh6 {[%clk 0:02:22]} 17. Qc3 {[%clk 0:02:15]}  Kb8 {[%clk 0:02:19]} 18. Ngf5 {[%clk 0:02:13]}  g4 {[%clk 0:02:18]} 19. Nxh6 {[%clk 0:02:10]}  Rxh6 {[%clk 0:02:19]} 20. b4 {[%clk 0:02:10]}  Nd4 {[%clk 0:02:18]} 21. a4 {[%clk 0:02:07]}  h4 {[%clk 0:02:13]} 22. b5 {[%clk 0:02:06]}  Nh5 {[%clk 0:02:06]} 23. Nc4 {[%clk 0:01:57]}  Nf4 {[%clk 0:01:59]} 24. Kf1 {[%clk 0:01:56]}  Qe6 {[%clk 0:01:41]} 25. Rb1 {[%clk 0:01:23]}  g3 {[%clk 0:01:38]} 0-1


[Site "https://www.chess.com"]

[Event "Titled Tuesday Blitz July 4 Early 2023"]
[White "Shvedova, Alexandra"]
[Black "Stribuk, Artiom"]
[WhiteFideId "54154782"]
[BlackFideId "13515659"]
[WhiteElo "2543"]
[BlackElo "2821"]
[Result "0-1"]
[Round "3"]
[TimeControl "180+2"]
[Date "2023.07.04"]
[WhiteClock "0:00:17"]
[BlackClock "0:00:10"]
[Board "40"]

1. e4 {[%clk 0:03:00]}  c5 {[%clk 0:02:59]} 2. Ne2 {[%clk 0:03:01]}  d6 {[%clk 0:02:56]} 3. g3 {[%clk 0:03:01]}  g6 {[%clk 0:02:50]} 4. Bg2 {[%clk 0:03:01]}  Bg7 {[%clk 0:02:49]} 5. c3 {[%clk 0:03:02]}  e5 {[%clk 0:02:40]} 6. O-O {[%clk 0:02:59]}  Nc6 {[%clk 0:02:40]} 7. Na3 {[%clk 0:02:57]}  Nge7 {[%clk 0:02:29]} 8. d3 {[%clk 0:02:53]}  O-O {[%clk 0:02:28]} 9. Be3 {[%clk 0:02:52]}  Be6 {[%clk 0:02:21]} 10. d4 {[%clk 0:02:48]}  exd4 {[%clk 0:01:46]} 11. cxd4 {[%clk 0:02:49]}  d5 {[%clk 0:01:46]} 12. Nb5 {[%clk 0:02:09]}  a6 {[%clk 0:01:41]} 13. Nbc3 {[%clk 0:02:08]}  dxe4 {[%clk 0:01:04]} 14. dxc5 {[%clk 0:02:04]}  f5 {[%clk 0:01:04]} 15. a3 {[%clk 0:01:39]}  Ne5 {[%clk 0:01:04]} 16. Qc2 {[%clk 0:01:31]}  Qd3 {[%clk 0:00:59]} 17. Nd4 {[%clk 0:01:20]}  Qxc2 {[%clk 0:00:51]} 18. Nxc2 {[%clk 0:01:21]}  N7c6 {[%clk 0:00:51]} 19. Nd4 {[%clk 0:01:11]}  Nxd4 {[%clk 0:00:51]} 20. Bxd4 {[%clk 0:01:12]}  Nf3+ {[%clk 0:00:52]} 21. Bxf3 {[%clk 0:01:12]}  Bxd4 {[%clk 0:00:53]} 22. Be2 {[%clk 0:01:11]}  Bxc5 {[%clk 0:00:53]} 23. Rfd1 {[%clk 0:01:06]}  Rfd8 {[%clk 0:00:48]} 24. Kf1 {[%clk 0:01:02]}  Bb3 {[%clk 0:00:39]} 25. Rxd8+ {[%clk 0:00:59]}  Rxd8 {[%clk 0:00:40]} 26. Ke1 {[%clk 0:00:59]}  Kf7 {[%clk 0:00:35]} 27. Nd1 {[%clk 0:00:56]}  Bd4 {[%clk 0:00:28]} 28. Rc1 {[%clk 0:00:54]}  Ke7 {[%clk 0:00:22]} 29. Nc3 {[%clk 0:00:45]}  Be5 {[%clk 0:00:17]} 30. h3 {[%clk 0:00:37]}  b5 {[%clk 0:00:17]} 31. h4 {[%clk 0:00:36]}  Rd7 {[%clk 0:00:14]} 32. h5 {[%clk 0:00:35]}  Kf6 {[%clk 0:00:12]} 33. g4 {[%clk 0:00:32]}  Kg5 {[%clk 0:00:12]} 34. hxg6 {[%clk 0:00:29]}  hxg6 {[%clk 0:00:13]} 35. gxf5 {[%clk 0:00:30]}  gxf5 {[%clk 0:00:13]} 36. Nb1 {[%clk 0:00:25]}  Bxb2 {[%clk 0:00:13]} 37. Rc6 {[%clk 0:00:25]}  Ba2 {[%clk 0:00:11]} 38. Nd2 {[%clk 0:00:23]}  Bxa3 {[%clk 0:00:10]} 39. Nf1 {[%clk 0:00:17]}  Bb4+ {[%clk 0:00:10]} 0-1


[Site "https://www.chess.com"]

[Event "Titled Tuesday Blitz July 4 Early 2023"]
[White "Goltsev, Dmitry"]
[Black "Novikov, Evgenij"]
[WhiteFideId "24176710"]
[BlackFideId "4125380"]
[WhiteElo "2809"]
[BlackElo "2541"]
[Result "1-0"]
[Round "3"]
[TimeControl "180+2"]
[Date "2023.07.04"]
[WhiteClock "0:00:12"]
[BlackClock "0:00:00"]
[Board "42"]

1. e4 {[%clk 0:03:00]}  c6 {[%clk 0:02:59]} 2. d4 {[%clk 0:03:00]}  d5 {[%clk 0:02:59]} 3. Nc3 {[%clk 0:03:01]}  dxe4 {[%clk 0:02:58]} 4. Nxe4 {[%clk 0:03:02]}  Nf6 {[%clk 0:02:58]} 5. Ng3 {[%clk 0:03:02]}  g6 {[%clk 0:02:54]} 6. c3 {[%clk 0:03:01]}  Bg7 {[%clk 0:02:53]} 7. Nf3 {[%clk 0:03:02]}  O-O {[%clk 0:02:50]} 8. Be2 {[%clk 0:03:00]}  Bg4 {[%clk 0:02:46]} 9. h3 {[%clk 0:03:00]}  Bxf3 {[%clk 0:02:46]} 10. Bxf3 {[%clk 0:03:01]}  Nbd7 {[%clk 0:02:15]} 11. O-O {[%clk 0:03:00]}  e5 {[%clk 0:02:13]} 12. Bg5 {[%clk 0:02:59]}  h6 {[%clk 0:02:10]} 13. Be3 {[%clk 0:02:58]}  Qc7 {[%clk 0:01:59]} 14. Qd2 {[%clk 0:02:56]}  Kh7 {[%clk 0:01:57]} 15. Rad1 {[%clk 0:02:54]}  Rfe8 {[%clk 0:01:54]} 16. Rfe1 {[%clk 0:02:54]}  exd4 {[%clk 0:01:45]} 17. Bxd4 {[%clk 0:02:54]}  Rxe1+ {[%clk 0:01:40]} 18. Rxe1 {[%clk 0:02:55]}  Re8 {[%clk 0:01:39]} 19. Rxe8 {[%clk 0:02:48]}  Nxe8 {[%clk 0:01:40]} 20. Bxg7 {[%clk 0:02:49]}  Nxg7 {[%clk 0:01:36]} 21. Ne4 {[%clk 0:02:49]}  Ne8 {[%clk 0:01:19]} 22. Qd4 {[%clk 0:02:44]}  a6 {[%clk 0:01:01]} 23. Be2 {[%clk 0:02:40]}  f5 {[%clk 0:00:54]} 24. Nd2 {[%clk 0:02:37]}  Ndf6 {[%clk 0:00:51]} 25. Nc4 {[%clk 0:02:32]}  Qd7 {[%clk 0:00:48]} 26. Qe5 {[%clk 0:02:20]}  Ne4 {[%clk 0:00:40]} 27. f3 {[%clk 0:02:07]}  N4d6 {[%clk 0:00:37]} 28. Ne3 {[%clk 0:02:01]}  Qg7 {[%clk 0:00:35]} 29. Qc5 {[%clk 0:01:55]}  Qe7 {[%clk 0:00:33]} 30. Qd4 {[%clk 0:01:46]}  Qf6 {[%clk 0:00:31]} 31. Qd2 {[%clk 0:01:39]}  Qe5 {[%clk 0:00:25]} 32. Nc2 {[%clk 0:01:36]}  Nf6 {[%clk 0:00:23]} 33. Qe3 {[%clk 0:01:29]}  Qxe3+ {[%clk 0:00:22]} 34. Nxe3 {[%clk 0:01:30]}  Kg7 {[%clk 0:00:23]} 35. Kf2 {[%clk 0:01:29]}  Kf7 {[%clk 0:00:22]} 36. Nc2 {[%clk 0:01:30]}  Ke6 {[%clk 0:00:22]} 37. Nd4+ {[%clk 0:01:30]}  Kd7 {[%clk 0:00:22]} 38. Ke3 {[%clk 0:01:28]}  c5 {[%clk 0:00:20]} 39. Nb3 {[%clk 0:01:27]}  Nd5+ {[%clk 0:00:20]} 40. Kd2 {[%clk 0:01:27]}  Kc6 {[%clk 0:00:19]} 41. c4 {[%clk 0:01:25]}  Nf4 {[%clk 0:00:18]} 42. Bf1 {[%clk 0:01:26]}  g5 {[%clk 0:00:17]} 43. g3 {[%clk 0:01:25]}  Ng6 {[%clk 0:00:17]} 44. Nc1 {[%clk 0:01:23]}  Ne5 {[%clk 0:00:17]} 45. Kc3 {[%clk 0:01:17]}  Nxf3 {[%clk 0:00:15]} 46. Bg2 {[%clk 0:01:16]}  Ne4+ {[%clk 0:00:14]} 47. Kb3 {[%clk 0:01:10]}  Nfd2+ {[%clk 0:00:12]} 48. Kc2 {[%clk 0:01:07]}  Nxc4 {[%clk 0:00:12]} 49. Bf3 {[%clk 0:01:01]}  Ne5 {[%clk 0:00:10]} 50. Bg2 {[%clk 0:01:00]}  Kd6 {[%clk 0:00:10]} 51. g4 {[%clk 0:00:59]}  fxg4 {[%clk 0:00:03]} 52. Bxe4 {[%clk 0:00:59]}  gxh3 {[%clk 0:00:03]} 53. Ne2 {[%clk 0:00:58]}  g4 {[%clk 0:00:03]} 54. Ng3 {[%clk 0:00:58]}  c4 {[%clk 0:00:03]} 55. Bxb7 {[%clk 0:00:54]}  Kc5 {[%clk 0:00:04]} 56. Kc3 {[%clk 0:00:53]}  Nf3 {[%clk 0:00:03]} 57. Bxa6 {[%clk 0:00:40]}  h2 {[%clk 0:00:04]} 58. Bxc4 {[%clk 0:00:37]}  h5 {[%clk 0:00:04]} 59. b4+ {[%clk 0:00:35]}  Kb6 {[%clk 0:00:03]} 60. Bf1 {[%clk 0:00:32]}  h4 {[%clk 0:00:03]} 61. Nh1 {[%clk 0:00:32]}  g3 {[%clk 0:00:03]} 62. a4 {[%clk 0:00:31]}  Ne1 {[%clk 0:00:02]} 63. a5+ {[%clk 0:00:31]}  Ka7 {[%clk 0:00:03]} 64. b5 {[%clk 0:00:28]}  g2 {[%clk 0:00:02]} 65. b6+ {[%clk 0:00:28]}  Kb8 {[%clk 0:00:02]} 66. Bxg2 {[%clk 0:00:28]}  Nxg2 {[%clk 0:00:03]} 67. Kb4 {[%clk 0:00:28]}  Ne3 {[%clk 0:00:03]} 68. Kb5 {[%clk 0:00:27]}  Nd5 {[%clk 0:00:03]} 69. Kc5 {[%clk 0:00:23]}  Nxb6 {[%clk 0:00:03]} 70. axb6 {[%clk 0:00:20]}  Kb7 {[%clk 0:00:03]} 71. Kb5 {[%clk 0:00:21]}  h3 {[%clk 0:00:03]} 72. Kc5 {[%clk 0:00:21]}  Kb8 {[%clk 0:00:02]} 73. Kc6 {[%clk 0:00:21]}  Kc8 {[%clk 0:00:02]} 74. Nf2 {[%clk 0:00:13]}  Kb8 {[%clk 0:00:02]} 75. b7 {[%clk 0:00:12]}  h1=Q+ {[%clk 0:00:01]} 76. Nxh1 {[%clk 0:00:13]}  h2 {[%clk 0:00:02]} 77. Nf2 {[%clk 0:00:12]}  h1=Q+ {[%clk 0:00:00]} 78. Nxh1 {[%clk 0:00:12]} 1-0


[Site "https://www.chess.com"]

[Event "Titled Tuesday Blitz July 4 Early 2023"]
[White "Rustemov, Alexander"]
[Black "Leebit02"]
[WhiteFideId "4119002"]
[WhiteElo "2796"]
[BlackElo "2495"]
[Result "0-1"]
[Round "3"]
[TimeControl "180+2"]
[Date "2023.07.04"]
[WhiteClock "0:00:00"]
[BlackClock "0:00:16"]
[Board "44"]

1. d4 {[%clk 0:03:00]}  d5 {[%clk 0:02:59]} 2. c4 {[%clk 0:03:01]}  e6 {[%clk 0:02:59]} 3. Nc3 {[%clk 0:03:01]}  c6 {[%clk 0:02:58]} 4. e3 {[%clk 0:03:01]}  Nf6 {[%clk 0:02:57]} 5. Nf3 {[%clk 0:03:00]}  Nbd7 {[%clk 0:02:57]} 6. Qc2 {[%clk 0:03:00]}  Bd6 {[%clk 0:02:56]} 7. Bd2 {[%clk 0:03:01]}  O-O {[%clk 0:02:52]} 8. O-O-O {[%clk 0:03:01]}  dxc4 {[%clk 0:02:44]} 9. Bxc4 {[%clk 0:03:00]}  b5 {[%clk 0:02:44]} 10. Bd3 {[%clk 0:03:01]}  a5 {[%clk 0:02:33]} 11. e4 {[%clk 0:02:58]}  e5 {[%clk 0:02:30]} 12. dxe5 {[%clk 0:02:56]}  Nxe5 {[%clk 0:02:30]} 13. Nxe5 {[%clk 0:02:57]}  Bxe5 {[%clk 0:02:30]} 14. f4 {[%clk 0:02:57]}  Bxc3 {[%clk 0:02:09]} 15. Bxc3 {[%clk 0:02:57]}  Qe7 {[%clk 0:01:58]} 16. Bd4 {[%clk 0:02:55]}  Nd7 {[%clk 0:01:52]} 17. e5 {[%clk 0:02:51]}  c5 {[%clk 0:01:42]} 18. Bxh7+ {[%clk 0:02:50]}  Kh8 {[%clk 0:01:42]} 19. Be4 {[%clk 0:02:41]}  Ra6 {[%clk 0:01:29]} 20. Bf2 {[%clk 0:02:36]}  c4 {[%clk 0:01:23]} 21. Kb1 {[%clk 0:02:34]}  Nc5 {[%clk 0:01:06]} 22. Bxc5 {[%clk 0:02:24]}  Qxc5 {[%clk 0:01:06]} 23. Qc3 {[%clk 0:01:54]}  b4 {[%clk 0:01:00]} 24. Qd4 {[%clk 0:01:53]}  Qc7 {[%clk 0:00:58]} 25. f5 {[%clk 0:01:41]}  c3 {[%clk 0:00:51]} 26. bxc3 {[%clk 0:01:39]}  bxc3 {[%clk 0:00:51]} 27. Rc1 {[%clk 0:01:39]}  Rb6+ {[%clk 0:00:48]} 28. Ka1 {[%clk 0:01:38]}  Rb4 {[%clk 0:00:48]} 29. Qf2 {[%clk 0:00:46]}  Rxe4 {[%clk 0:00:47]} 30. Qf3 {[%clk 0:00:36]}  Qxe5 {[%clk 0:00:45]} 31. Qxc3 {[%clk 0:00:30]}  Qxc3+ {[%clk 0:00:44]} 32. Rxc3 {[%clk 0:00:30]}  Bxf5 {[%clk 0:00:44]} 33. Rc5 {[%clk 0:00:29]}  Be6 {[%clk 0:00:38]} 34. Rxa5 {[%clk 0:00:29]}  Re2 {[%clk 0:00:39]} 35. g3 {[%clk 0:00:25]}  Rd8 {[%clk 0:00:39]} 36. h4 {[%clk 0:00:19]}  Rdd2 {[%clk 0:00:38]} 37. a3 {[%clk 0:00:08]}  Ra2+ {[%clk 0:00:38]} 38. Kb1 {[%clk 0:00:09]}  Reb2+ {[%clk 0:00:35]} 39. Kc1 {[%clk 0:00:09]}  Rb3 {[%clk 0:00:27]} 40. Rd1 {[%clk 0:00:06]}  g6 {[%clk 0:00:24]} 41. Rd4 {[%clk 0:00:05]}  Raxa3 {[%clk 0:00:23]} 42. Rxa3 {[%clk 0:00:04]}  Rxa3 {[%clk 0:00:24]} 43. g4 {[%clk 0:00:04]}  Rc3+ {[%clk 0:00:23]} 44. Kd2 {[%clk 0:00:04]}  Rc4 {[%clk 0:00:24]} 45. Rd8+ {[%clk 0:00:01]}  Kg7 {[%clk 0:00:24]} 46. h5 {[%clk 0:00:02]}  Rxg4 {[%clk 0:00:23]} 47. hxg6 {[%clk 0:00:02]}  Kxg6 {[%clk 0:00:23]} 48. Ke3 {[%clk 0:00:03]}  Rg5 {[%clk 0:00:23]} 49. Kf4 {[%clk 0:00:03]}  Rg4+ {[%clk 0:00:23]} 50. Ke5 {[%clk 0:00:03]}  Kg7 {[%clk 0:00:19]} 51. Rb8 {[%clk 0:00:02]}  Rg5+ {[%clk 0:00:20]} 52. Kf4 {[%clk 0:00:02]}  Rf5+ {[%clk 0:00:21]} 53. Ke4 {[%clk 0:00:02]}  Kf6 {[%clk 0:00:20]} 54. Rd8 {[%clk 0:00:02]}  Re5+ {[%clk 0:00:21]} 55. Kf4 {[%clk 0:00:02]}  Rd5 {[%clk 0:00:21]} 56. Rh8 {[%clk 0:00:02]}  Rd4+ {[%clk 0:00:21]} 57. Ke3 {[%clk 0:00:02]}  Ra4 {[%clk 0:00:22]} 58. Rh6+ {[%clk 0:00:02]}  Ke5 {[%clk 0:00:22]} 59. Rh5+ {[%clk 0:00:02]}  f5 {[%clk 0:00:22]} 60. Rh8 {[%clk 0:00:02]}  f4+ {[%clk 0:00:21]} 61. Kf2 {[%clk 0:00:03]}  Ra2+ {[%clk 0:00:21]} 62. Kf3 {[%clk 0:00:03]}  Bd5+ {[%clk 0:00:21]} 63. Kg4 {[%clk 0:00:03]}  Rg2+ {[%clk 0:00:21]} 64. Kh3 {[%clk 0:00:03]}  f3 {[%clk 0:00:22]} 65. Re8+ {[%clk 0:00:03]}  Kd4 {[%clk 0:00:22]} 66. Rf8 {[%clk 0:00:03]}  Ke3 {[%clk 0:00:22]} 67. Re8+ {[%clk 0:00:02]}  Be4 {[%clk 0:00:22]} 68. Rf8 {[%clk 0:00:02]}  f2 {[%clk 0:00:21]} 69. Rf6 {[%clk 0:00:02]}  Rg6 {[%clk 0:00:21]} 70. Rf8 {[%clk 0:00:02]}  Ke2 {[%clk 0:00:20]} 71. Kh2 {[%clk 0:00:01]}  f1=Q {[%clk 0:00:17]} 72. Rf2+ {[%clk 0:00:00]}  Qxf2+ {[%clk 0:00:16]} 0-1


[Site "https://www.chess.com"]